fUSD/lending_fUSD_20240813
["ID","MTS","AMOUNT","RATE_DAILY","PERIOD"]
[334749618,1723535461192,-500.0,0.00014073,2]
[334749619,1723535461201,-500.0,0.00014073,2]
[334749620,1723535461210,-500.0,0.00014073,2]
[334749621,1723535461219,-1180.27,0.00014073,2]
[334749622,1723535461228,-500.0,0.00014073,2]
[334749623,1723535461238,-2066.64,0.00014073,2]
[334749624,1723535461252,-913.4,0.00014073,2]
[334749625,1723535461263,-500.0,0.00014073,2]
[334749626,1723535461272,-1756.06,0.00014073,2]
[334749627,1723535461282,-500.0,0.00014073,2]
[334749628,1723535461291,-500.0,0.00014073,2]
[334749629,1723535461300,-610.16,0.00014073,2]
[334749630,1723535461310,-4710.01,0.00014073,2]
[334749631,1723535461319,-500.0,0.00014073,2]
[334749632,1723535461329,-1586.08,0.00014073,2]
[334749633,1723535461338,-500.0,0.00014073,2]
[334749634,1723535461348,-500.0,0.00014073,2]
[334749635,1723535461357,-500.0,0.00014073,2]
[334749636,1723535461366,-500.0,0.00014073,2]
[334749637,1723535461375,-842.93,0.00014073,2]
[334749638,1723535461385,-500.84,0.00014073,2]
[334749639,1723535461394,-500.0,0.00014073,2]
[334749640,1723535461404,-500.0,0.00014073,2]
[334749641,1723535461414,-934.19,0.00014073,2]
[334749642,1723535461423,-500.0,0.00014073,2]
[334749643,1723535461432,-4812.55,0.00014073,2]
[334749644,1723535461442,-169.8274295,0.00014073,2]
[334749645,1723535461451,-500.0,0.00014073,2]
[334749646,1723535461461,-500.0,0.00014073,2]
[334749647,1723535461471,-605.96,0.00014073,2]
[334749648,1723535461481,-500.0,0.00014073,2]
[334749649,1723535461491,-755.9,0.00014073,2]
[334749650,1723535461505,-1219.63,0.00014073,2]
[334749651,1723535461514,-500.0,0.00014073,2]
[334749652,1723535461524,-500.0,0.00014073,2]
[334749653,1723535461534,-889.59,0.00014073,2]
[334749654,1723535461548,-2146.37,0.00014073,2]
[334749655,1723535461558,-521.65,0.00014073,2]
[334749656,1723535461568,-500.0,0.00014073,2]
[334749657,1723535461730,-2584.53,0.00014073,2]
[334749658,1723535461740,-500.0,0.00014073,2]
[334749659,1723535461754,-500.0,0.00014073,2]
[334749660,1723535461764,-500.0,0.00014073,2]
[334749661,1723535461774,-500.0,0.00014073,2]
[334749662,1723535461783,-500.0,0.00014073,2]
[334749663,1723535461792,-500.0,0.00014073,2]
[334749664,1723535461802,-500.0,0.00014073,2]
[334749665,1723535461811,-690.9,0.00014073,2]
[334749666,1723535461821,-645.82,0.00014073,2]
[334749667,1723535461831,-500.0,0.00014073,2]
[334749668,1723535461841,-500.0,0.00014073,2]
[334749669,1723535461850,-4824.32,0.00014073,2]
[334749670,1723535461860,-2092.45,0.00014073,2]
[334749671,1723535461869,-1427.21,0.00014073,2]
[334749672,1723535461878,-500.0,0.00014073,2]
[334749673,1723535461887,-500.0,0.00014073,2]
[334749674,1723535461897,-500.0,0.00014073,2]
[334749675,1723535461907,-500.0,0.00014073,2]
[334749676,1723535461916,-500.0,0.00014073,2]
[334749677,1723535461926,-500.0,0.00014073,2]
[334749678,1723535461935,-500.0,0.00014073,2]
[334749679,1723535461945,-500.0,0.00014073,2]
[334749680,1723535461954,-500.0,0.00014073,2]
[334749681,1723535461963,-500.0,0.00014073,2]
[334749682,1723535461973,-2925.2,0.00014073,2]
[334749683,1723535461983,-500.0,0.00014073,2]
[334749684,1723535461992,-500.0,0.00014073,2]
[334749685,1723535462004,-500.0,0.00014073,2]
[334749686,1723535462014,-500.0,0.00014073,2]
[334749687,1723535462024,-500.0,0.00014073,2]
[334749688,1723535462033,-732.87,0.00014073,2]
[334749689,1723535462042,-500.0,0.00014073,2]
[334749690,1723535462052,-608.0105077,0.00014086,2]
[334749691,1723535462060,-439.11555003,0.00014105,2]
[334749692,1723535462070,-212.95511118,0.00014177,2]
[334749693,1723535462079,-2368.83345419,0.00014177,2]
[334749694,1723535462088,-159.2311207,0.00014177,2]
[334749695,1723535462097,-11672.8512,0.00014177,2]
[334749696,1723535462107,-19213.6077682,0.00014236,2]
[334749697,1723535462116,-256.63,0.00014239,2]
[334749698,1723535462126,-329.57,0.00014239,2]
[334749699,1723535462136,-500.0,0.00014246,2]
[334749700,1723535462147,-500.0,0.00014246,2]
[334749701,1723535462157,-500.0,0.00014246,2]
[334749702,1723535462169,-500.0,0.00014246,2]
[334749703,1723535462180,-771.68,0.00014246,2]
[334749704,1723535462191,-500.0,0.00014246,2]
[334749705,1723535462201,-1103.589328,0.00014247,2]
[334749706,1723535462212,-19213.6077682,0.00014266,2]
[334749707,1723535462222,-57640.8233047,0.00014267,2]
[334749708,1723535462234,-1412.75,0.00014275,2]
[334749709,1723535462248,-500.0,0.00014275,2]
[334749710,1723535462259,-500.0,0.00014275,2]
[334749711,1723535462271,-500.0,0.00014275,2]
[334749712,1723535462281,-233.81125957,0.00014275,2]
[334749713,1723535462291,-500.0,0.00014275,2]
[334749714,1723535462301,-500.0,0.00014275,2]
[334749715,1723535462311,-500.0,0.00014275,2]
[334749716,1723535462321,-187.78474847,0.00014276,2]
[334749717,1723535462330,-500.0,0.00014276,2]
[334749718,1723535462340,-500.0,0.00014276,2]
[334749719,1723535462351,-518.14217247,0.00014276,2]
[334749720,1723535462362,-500.0,0.00014276,2]
[334749721,1723535462372,-500.0,0.00014276,2]
[334749722,1723535462381,-500.0,0.00014276,2]
[334749723,1723535462391,-500.0,0.00014276,2]
[334749724,1723535462401,-508.59,0.00014276,2]
[334749725,1723535462411,-500.0,0.00014276,2]
[334749726,1723535462421,-519.86362157,0.00014276,2]
[334749727,1723535462430,-500.0,0.00014276,2]
[334749728,1723535462440,-500.0,0.00014276,2]
[334749729,1723535462449,-500.0,0.00014276,2]
[334749730,1723535462458,-500.0,0.00014276,2]
[334749731,1723535462468,-500.0,0.00014276,2]
[334749732,1723535462477,-500.0,0.00014276,2]
[334749733,1723535462487,-605.28343991,0.00014276,2]
[334749734,1723535462500,-500.0,0.00014276,2]
[334749735,1723535462509,-500.0,0.00014276,2]
[334749736,1723535462518,-500.0,0.00014276,2]
[334749737,1723535462528,-500.0,0.00014276,2]
[334749738,1723535462538,-500.0,0.00014276,2]
[334749739,1723535462549,-500.0,0.00014276,2]
[334749740,1723535462558,-500.0,0.00014276,2]
[334749741,1723535462567,-500.0,0.00014276,2]
[334749742,1723535462576,-500.0,0.00014276,2]
[334749743,1723535462586,-464.78247558,0.00014276,2]
[334749744,1723535462595,-500.0,0.00014276,2]
[334749745,1723535462605,-500.0,0.00014276,2]
[334749746,1723535462616,-500.0,0.00014276,2]
[334749747,1723535462625,-500.0,0.00014276,2]
[334749748,1723535462634,-500.0,0.00014276,2]
[334749749,1723535462643,-500.0,0.00014276,2]
[334749750,1723535462653,-500.0,0.00014276,2]
[334749751,1723535462662,-500.0,0.00014276,2]
[334749752,1723535462670,-516.06917153,0.00014276,2]
[334749753,1723535462680,-386.22174161,0.00014276,2]
[334749754,1723535462690,-500.0,0.00014276,2]
[334749755,1723535462699,-500.0,0.00014276,2]
[334749756,1723535462708,-500.0,0.00014276,2]
[334749757,1723535462717,-500.0,0.00014276,2]
[334749758,1723535462727,-514.7508235,0.00014276,2]
[334749759,1723535462736,-500.0,0.00014276,2]
[334749760,1723535462750,-500.0,0.00014276,2]
[334749761,1723535462759,-500.0,0.00014276,2]
[334749762,1723535462769,-500.0,0.00014276,2]
[334749763,1723535462779,-500.0,0.00014276,2]
[334749764,1723535462789,-500.0,0.00014276,2]
[334749765,1723535462799,-500.0,0.00014276,2]
[334749766,1723535462808,-521.92768469,0.00014276,2]
[334749767,1723535462818,-500.0,0.00014276,2]
[334749768,1723535462827,-500.0,0.00014276,2]
[334749769,1723535462836,-500.0,0.00014276,2]
[334749770,1723535462846,-500.0,0.00014276,2]
[334749771,1723535462855,-500.0,0.00014276,2]
[334749772,1723535462865,-500.0,0.00014276,2]
[334749773,1723535462874,-500.0,0.00014276,2]
[334749774,1723535462884,-500.0,0.00014276,2]
[334749775,1723535462893,-500.0,0.00014276,2]
[334749776,1723535462902,-500.0,0.00014276,2]
[334749777,1723535462912,-500.0,0.00014276,2]
[334749778,1723535462921,-500.0,0.00014276,2]
[334749779,1723535462931,-500.0,0.00014276,2]
[334749780,1723535462940,-500.0,0.00014276,2]
[334749781,1723535462949,-500.0,0.00014276,2]
[334749782,1723535462959,-500.0,0.00014276,2]
[334749783,1723535462968,-500.0,0.00014276,2]
[334749784,1723535462977,-288.10843281,0.00014276,2]
[334749785,1723535462986,-500.0,0.00014276,2]
[334749786,1723535462998,-500.0,0.00014276,2]
[334749787,1723535463007,-500.0,0.00014276,2]
[334749788,1723535463016,-500.0,0.00014276,2]
[334749789,1723535463026,-500.0,0.00014276,2]
[334749790,1723535463035,-500.0,0.00014276,2]
[334749791,1723535463044,-633.63372388,0.00014276,2]
[334749792,1723535463054,-6591.73,0.00014276,2]
[334749793,1723535463064,-500.0,0.00014276,2]
[334749794,1723535463073,-179.98351956,0.00014276,2]
[334749795,1723535463082,-500.0,0.00014276,2]
[334749796,1723535463091,-500.0,0.00014276,2]
[334749797,1723535463100,-1037.55,0.00014276,2]
[334749798,1723535463110,-528.49708235,0.00014276,2]
[334749799,1723535463119,-500.0,0.00014276,2]
[334749800,1723535463128,-510.13047809,0.00014276,2]
[334749801,1723535463138,-500.0,0.00014276,2]
[334749802,1723535463147,-500.0,0.00014276,2]
[334749803,1723535463156,-500.0,0.00014276,2]
[334749804,1723535463165,-500.0,0.00014276,2]
[334749805,1723535463174,-500.0,0.00014276,2]
[334749806,1723535463184,-500.0,0.00014276,2]
[334749807,1723535463193,-500.0,0.00014276,2]
[334749808,1723535463203,-981.15,0.00014276,2]
[334749809,1723535463212,-599.44563607,0.00014276,2]
[334749810,1723535463221,-500.0,0.00014276,2]
[334749811,1723535463231,-500.0,0.00014276,2]
[334749812,1723535463241,-500.0,0.00014276,2]
[334749813,1723535463252,-500.0,0.00014276,2]
[334749814,1723535463261,-500.0,0.00014276,2]
[334749815,1723535463270,-503.97165396,0.00014276,2]
[334749816,1723535463280,-553.64,0.00014276,2]
[334749817,1723535463289,-505.73,0.00014276,2]
[334749818,1723535463298,-888.8,0.00014276,2]
[334749819,1723535463308,-500.0,0.00014276,2]
[334749820,1723535463317,-500.0,0.00014276,2]
[334749821,1723535463326,-500.0,0.00014276,2]
[334749822,1723535463336,-4003.23,0.00014276,2]
[334749823,1723535463346,-500.0,0.00014276,2]
[334749824,1723535463355,-510.2030311,0.00014276,2]
[334749825,1723535463364,-500.0,0.00014276,2]
[334749826,1723535463374,-500.0,0.00014276,2]
[334749827,1723535463383,-515.20431927,0.00014276,2]
[334749828,1723535463392,-773.78,0.00014276,2]
[334749829,1723535463401,-500.0,0.00014276,2]
[334749830,1723535463411,-560.08,0.00014276,2]
[334749831,1723535463420,-500.0,0.00014276,2]
[334749832,1723535463430,-511.66784129,0.00014276,2]
[334749833,1723535463439,-500.0,0.00014276,2]
[334749834,1723535463449,-1646.38,0.00014276,2]
[334749835,1723535463458,-500.0,0.00014276,2]
[334749836,1723535463467,-500.0,0.00014276,2]
[334749837,1723535463477,-1106.51,0.00014276,2]
[334749838,1723535463486,-1145.83,0.00014276,2]
[334749839,1723535463497,-500.0,0.00014276,2]
[334749840,1723535463506,-500.0,0.00014276,2]
[334749841,1723535463516,-500.0,0.00014276,2]
[334749842,1723535463526,-500.0,0.00014276,2]
[334749843,1723535463536,-1271.02,0.00014276,2]
[334749844,1723535463550,-500.0,0.00014276,2]
[334749845,1723535463560,-509.62739945,0.00014276,2]
[334749846,1723535463569,-500.0,0.00014276,2]
[334749847,1723535463578,-500.0,0.00014276,2]
[334749848,1723535463588,-756.19,0.00014276,2]
[334749849,1723535463598,-1189.17,0.00014276,2]
[334749850,1723535463607,-500.0,0.00014276,2]
[334749851,1723535463617,-633.87,0.00014276,2]
[334749852,1723535463626,-500.0,0.00014276,2]
[334749853,1723535463635,-518.20429982,0.00014276,2]
[334749854,1723535463644,-500.0,0.00014276,2]
[334749855,1723535463654,-500.0,0.00014276,2]
[334749856,1723535463663,-500.0,0.00014276,2]
[334749857,1723535463671,-500.0,0.00014276,2]
[334749858,1723535463681,-507.8,0.00014276,2]
[334749859,1723535463690,-500.0,0.00014276,2]
[334749860,1723535463700,-500.0,0.00014276,2]
[334749861,1723535463710,-506.32394226,0.00014276,2]
[334749862,1723535463719,-555.42,0.00014276,2]
[334749863,1723535463728,-500.0,0.00014276,2]
[334749864,1723535463738,-869.38,0.00014276,2]
[334749865,1723535463748,-500.0,0.00014276,2]
[334749866,1723535463757,-500.0,0.00014276,2]
[334749867,1723535463767,-500.0,0.00014276,2]
[334749868,1723535463776,-500.0,0.00014276,2]
[334749869,1723535463786,-500.0,0.00014277,2]
[334749870,1723535463795,-500.0,0.00014277,2]
[334749871,1723535463804,-500.0,0.00014277,2]
[334749872,1723535463814,-653.45,0.00014277,2]
[334749873,1723535463823,-216.91924496,0.00014277,2]
[334749874,1723535463832,-500.0,0.00014277,2]
[334749875,1723535463841,-500.0,0.00014277,2]
[334749876,1723535463851,-663.86,0.00014277,2]
[334749877,1723535463860,-500.0,0.00014277,2]
[334749878,1723535463870,-500.0,0.00014277,2]
[334749879,1723535463879,-500.0,0.00014277,2]
[334749880,1723535463888,-500.0,0.00014277,2]
[334749881,1723535463897,-500.0,0.00014277,2]
[334749882,1723535463906,-500.0,0.00014277,2]
[334749883,1723535463915,-500.0,0.00014277,2]
[334749884,1723535463924,-784.51,0.00014277,2]
[334749885,1723535463933,-500.0,0.00014277,2]
[334749886,1723535463943,-500.0,0.00014277,2]
[334749887,1723535463952,-500.0,0.00014277,2]
[334749888,1723535463961,-500.0,0.00014277,2]
[334749889,1723535463971,-500.0,0.00014277,2]
[334749890,1723535463980,-500.0,0.00014277,2]
[334749891,1723535463990,-500.0,0.00014277,2]
[334749892,1723535464001,-500.0,0.00014277,2]
[334749893,1723535464010,-528.34222997,0.00014277,2]
[334749894,1723535464020,-500.0,0.00014277,2]
[334749895,1723535464029,-500.0,0.00014277,2]
[334749896,1723535464038,-500.0,0.00014277,2]
[334749897,1723535464047,-500.0,0.00014277,2]
[334749898,1723535464057,-500.0,0.00014277,2]
[334749899,1723535464066,-500.0,0.00014277,2]
[334749900,1723535464075,-374.01610544,0.00014277,2]
[334749901,1723535464084,-500.0,0.00014277,2]
[334749902,1723535464094,-500.0,0.00014277,2]
[334749903,1723535464103,-500.0,0.00014277,2]
[334749904,1723535464112,-500.0,0.00014277,2]
[334749905,1723535464122,-500.0,0.00014277,2]
[334749906,1723535464277,-500.0,0.00014277,2]
[334749907,1723535464287,-500.0,0.00014277,2]
[334749908,1723535464297,-523.02545841,0.00014277,2]
[334749909,1723535464307,-500.0,0.00014277,2]
[334749910,1723535464316,-500.0,0.00014277,2]
[334749911,1723535464326,-500.0,0.00014277,2]
[334749912,1723535464335,-2199.74,0.00014277,2]
[334749913,1723535464344,-500.0,0.00014277,2]
[334749914,1723535464354,-500.0,0.00014277,2]
[334749915,1723535464363,-500.0,0.00014277,2]
[334749916,1723535464372,-500.0,0.00014277,2]
[334749917,1723535464382,-500.0,0.00014277,2]
[334749918,1723535464391,-500.0,0.00014277,2]
[334749919,1723535464400,-500.0,0.00014277,2]
[334749920,1723535464410,-500.0,0.00014277,2]
[334749921,1723535464420,-500.0,0.00014277,2]
[334749922,1723535464429,-243.40396651,0.00014277,2]
[334749923,1723535464438,-500.0,0.00014277,2]
[334749924,1723535464448,-500.0,0.00014277,2]
[334749925,1723535464458,-500.0,0.00014277,2]
[334749926,1723535464467,-500.0,0.00014277,2]
[334749927,1723535464477,-500.0,0.00014277,2]
[334749928,1723535464487,-500.0,0.00014277,2]
[334749929,1723535464499,-500.0,0.00014277,2]
[334749930,1723535464511,-1837.44,0.00014277,2]
[334749931,1723535464521,-909.74,0.00014277,2]
[334749932,1723535464531,-500.0,0.00014277,2]
[334749933,1723535464543,-500.0,0.00014277,2]
[334749934,1723535464552,-500.0,0.00014277,2]
[334749935,1723535464562,-500.0,0.00014277,2]
[334749936,1723535464571,-16518.43,0.00014277,2]
[334749937,1723535464582,-602.29882816,0.00014277,2]
[334749938,1723535464591,-500.0,0.00014277,2]
[334749939,1723535464601,-500.0,0.00014277,2]
[334749940,1723535464611,-500.0,0.00014277,2]
[334749941,1723535464623,-500.0,0.00014277,2]
[334749942,1723535464634,-500.0,0.00014277,2]
[334749943,1723535464643,-500.0,0.00014277,2]
[334749944,1723535464653,-500.0,0.00014277,2]
[334749945,1723535464663,-500.0,0.00014277,2]
[334749946,1723535464672,-500.0,0.00014277,2]
[334749947,1723535464682,-932.05,0.00014277,2]
[334749948,1723535464691,-500.0,0.00014277,2]
[334749949,1723535464700,-724.39,0.00014277,2]
[334749950,1723535464710,-557.92517265,0.00014277,2]
[334749951,1723535464720,-500.0,0.00014277,2]
[334749952,1723535464729,-500.0,0.00014277,2]
[334749953,1723535464739,-500.0,0.00014277,2]
[334749954,1723535464749,-500.0,0.00014277,2]
[334749955,1723535464759,-391.73643787,0.00014277,2]
[334749956,1723535464769,-500.0,0.00014277,2]
[334749957,1723535464778,-500.0,0.00014277,2]
[334749958,1723535464788,-500.0,0.00014277,2]
[334749959,1723535464797,-500.0,0.00014277,2]
[334749960,1723535464806,-500.0,0.00014277,2]
[334749961,1723535464815,-587.6,0.00014277,2]
[334749962,1723535464825,-500.0,0.00014277,2]
[334749963,1723535464834,-908.11,0.00014277,2]
[334749964,1723535464844,-799.22,0.00014277,2]
[334749965,1723535464853,-500.0,0.00014277,2]
[334749966,1723535464862,-500.0,0.00014277,2]
[334749967,1723535464871,-500.0,0.00014277,2]
[334749968,1723535464881,-1082.91,0.00014277,2]
[334749969,1723535464891,-500.0,0.00014277,2]
[334749970,1723535464900,-500.0,0.00014277,2]
[334749971,1723535464910,-500.0,0.00014277,2]
[334749972,1723535464919,-500.0,0.00014277,2]
[334749973,1723535464928,-638.22979503,0.00014277,2]
[334749974,1723535464937,-500.0,0.00014277,2]
[334749975,1723535464947,-569.82451856,0.00014277,2]
[334749976,1723535464956,-500.0,0.00014277,2]
[334749977,1723535464966,-15076.44,0.00014277,2]
[334749978,1723535464975,-500.0,0.00014277,2]
[334749979,1723535464984,-500.0,0.00014277,2]
[334749980,1723535464994,-500.0,0.00014277,2]
[334749981,1723535465003,-500.0,0.00014277,2]
[334749982,1723535465013,-500.0,0.00014277,2]
[334749983,1723535465023,-502.33665558,0.00014277,2]
[334749984,1723535465032,-500.0,0.00014277,2]
[334749985,1723535465042,-4670.57,0.00014277,2]
[334749986,1723535465050,-500.0,0.00014277,2]
[334749987,1723535465060,-500.0,0.00014277,2]
[334749988,1723535465069,-500.0,0.00014277,2]
[334749989,1723535465078,-667.34,0.00014277,2]
[334749990,1723535465087,-571.04,0.00014277,2]
[334749991,1723535465097,-500.0,0.00014277,2]
[334749992,1723535465106,-1754.66,0.00014277,2]
[334749993,1723535465115,-500.0,0.00014277,2]
[334749994,1723535465125,-500.0,0.00014277,2]
[334749995,1723535465134,-500.0,0.00014277,2]
[334749996,1723535465143,-500.0,0.00014277,2]
[334749997,1723535465152,-500.0,0.00014277,2]
[334749998,1723535465162,-500.0,0.00014277,2]
[334749999,1723535465171,-534.32,0.00014277,2]
[334750000,1723535465181,-160.83843334,0.00014277,2]
[334750001,1723535465191,-500.0,0.00014277,2]
[334750002,1723535465200,-500.0,0.00014277,2]
[334750003,1723535465209,-524.33,0.00014277,2]
[334750004,1723535465218,-500.0,0.00014277,2]
[334750005,1723535465227,-500.0,0.00014277,2]
[334750006,1723535465236,-682.76,0.00014277,2]
[334750007,1723535465247,-1600.18,0.00014277,2]
[334750008,1723535465256,-2553.18,0.00014277,2]
[334750009,1723535465266,-500.0,0.00014277,2]
[334750010,1723535465275,-500.0,0.00014277,2]
[334750011,1723535465284,-500.0,0.00014277,2]
[334750012,1723535465293,-278.45545464,0.00014277,2]
[334750013,1723535465302,-500.0,0.00014277,2]
[334750014,1723535465311,-500.0,0.00014277,2]
[334750015,1723535465321,-503.21383099,0.00014277,2]
[334750016,1723535465330,-500.0,0.00014277,2]
[334750017,1723535465340,-500.0,0.00014277,2]
[334750018,1723535465349,-500.0,0.00014277,2]
[334750019,1723535465358,-549.82,0.00014277,2]
[334750020,1723535465369,-500.0,0.00014277,2]
[334750021,1723535465378,-705.6,0.00014277,2]
[334750022,1723535465387,-500.0,0.00014277,2]
[334750023,1723535465397,-500.0,0.00014277,2]
[334750024,1723535465406,-642.63277445,0.00014277,2]
[334750025,1723535465415,-500.0,0.00014277,2]
[334750026,1723535465425,-523.5534487,0.00014277,2]
[334750027,1723535465434,-537.56854074,0.00014277,2]
[334750028,1723535465443,-500.0,0.00014277,2]
[334750029,1723535465453,-500.0,0.00014277,2]
[334750030,1723535465462,-500.0,0.00014277,2]
[334750031,1723535465472,-535.35656503,0.00014277,2]
[334750032,1723535465483,-500.0,0.00014277,2]
[334750033,1723535465492,-514.98485476,0.00014277,2]
[334750034,1723535465503,-500.0,0.00014277,2]
[334750035,1723535465512,-500.0,0.00014277,2]
[334750036,1723535465521,-500.0,0.00014277,2]
[334750037,1723535465530,-500.0,0.00014277,2]
[334750038,1723535465543,-500.0,0.00014277,2]
[334750039,1723535465551,-500.0,0.00014277,2]
[334750040,1723535465560,-500.0,0.00014277,2]
[334750041,1723535465570,-500.0,0.00014277,2]
[334750042,1723535465580,-500.0,0.00014277,2]
[334750043,1723535465591,-500.0,0.00014277,2]
[334750044,1723535465601,-500.0,0.00014277,2]
[334750045,1723535465612,-500.0,0.00014277,2]
[334750046,1723535465622,-500.0,0.00014277,2]
[334750047,1723535465632,-500.0,0.00014277,2]
[334750048,1723535465642,-500.0,0.00014277,2]
[334750049,1723535465651,-500.0,0.00014277,2]
[334750050,1723535465660,-500.0,0.00014277,2]
[334750051,1723535465669,-500.0,0.00014277,2]
[334750052,1723535465679,-500.0,0.00014277,2]
[334750053,1723535465689,-500.0,0.00014277,2]
[334750054,1723535465699,-500.0,0.00014277,2]
[334750055,1723535465709,-523.45957669,0.00014277,2]
[334750056,1723535465718,-500.0,0.00014277,2]
[334750057,1723535465728,-500.0,0.00014277,2]
[334750058,1723535465737,-500.0,0.00014277,2]
[334750059,1723535465748,-500.0,0.00014277,2]
[334750060,1723535465757,-500.0,0.00014277,2]
[334750061,1723535465766,-500.0,0.00014277,2]
[334750062,1723535465775,-500.0,0.00014277,2]
[334750063,1723535465784,-500.0,0.00014277,2]
[334750064,1723535465793,-500.0,0.00014277,2]
[334750065,1723535465803,-500.0,0.00014277,2]
[334750066,1723535465814,-500.0,0.00014277,2]
[334750067,1723535465825,-500.0,0.00014277,2]
[334750068,1723535465834,-500.0,0.00014277,2]
[334750069,1723535465845,-500.0,0.00014277,2]
[334750070,1723535465855,-500.0,0.00014277,2]
[334750071,1723535465866,-500.0,0.00014277,2]
[334750072,1723535465875,-575.5938525,0.00014277,2]
[334750073,1723535465884,-500.0,0.00014277,2]
[334750074,1723535465894,-803.87,0.00014277,2]
[334750075,1723535465903,-568.43052535,0.00014277,2]
[334750076,1723535465912,-500.0,0.00014277,2]
[334750077,1723535465921,-539.62390063,0.00014277,2]
[334750078,1723535465930,-547.68109044,0.00014277,2]
[334750079,1723535465939,-500.0,0.00014277,2]
[334750080,1723535465948,-500.0,0.00014277,2]
[334750081,1723535465957,-500.0,0.00014277,2]
[334750082,1723535465967,-38427.2155365,0.00014337,2]
[334750083,1723535465976,-500.0,0.00014347,2]
[334750084,1723535465986,-1863.44,0.00014347,2]
[334750085,1723535465996,-500.0,0.00014347,2]
[334750086,1723535466006,-500.0,0.00014347,2]
[334750087,1723535466015,-500.0,0.00014347,2]
[334750088,1723535466024,-500.0,0.00014347,2]
[334750089,1723535466033,-500.0,0.00014347,2]
[334750090,1723535466046,-500.0,0.00014347,2]
[334750091,1723535466055,-500.0,0.00014347,2]
[334750092,1723535466064,-500.0,0.00014347,2]
[334750093,1723535466073,-500.0,0.00014347,2]
[334750094,1723535466082,-543.07672779,0.00014347,2]
[334750095,1723535466091,-150.0,0.00014347,2]
[334750096,1723535466100,-1155.62,0.00014347,2]
[334750097,1723535466109,-500.0,0.00014347,2]
[334750098,1723535466118,-500.0,0.00014347,2]
[334750099,1723535466128,-714.2,0.00014347,2]
[334750100,1723535466137,-1241.0,0.00014347,2]
[334750101,1723535466146,-500.0,0.00014347,2]
[334750102,1723535466156,-755.25,0.00014347,2]
[334750103,1723535466169,-791.16,0.00014347,2]
[334750104,1723535466178,-1099.51,0.00014347,2]
[334750105,1723535466189,-500.0,0.00014347,2]
[334750106,1723535466199,-513.08542035,0.00014347,2]
[334750107,1723535466208,-500.0,0.00014347,2]
[334750108,1723535466218,-500.0,0.00014347,2]
[334750109,1723535466227,-946.68,0.00014347,2]
[334750110,1723535466236,-500.0,0.00014347,2]
[334750111,1723535466247,-1359.34,0.00014347,2]
[334750112,1723535466258,-500.0,0.00014347,2]
[334750113,1723535466268,-500.0,0.00014347,2]
[334750114,1723535466278,-500.0,0.00014347,2]
[334750115,1723535466287,-1743.71,0.00014347,2]
[334750116,1723535466297,-1023.06,0.00014347,2]
[334750117,1723535466306,-500.0,0.00014347,2]